Cogmind - Beta 14 @@@ ROGUE MODE // 2024.10.15 @ 13:06:12 Player: Ae Result: Destroyed by 1G-4KX(R) with Subdweller Beam Cannon Performance ------------- Evolutions (0) 0 Regions Visited (2) 400 Robots Destroyed (24) 120 Value Destroyed (397) 397 Prototype IDs (0) 0 Alien Tech Used (0) 0 Bonus (0) 0 TOTAL SCORE: 917 Bonus ------- None Cogmind --------- Core Integrity 0/250 Matter 300/300 Energy 100/100 System Corruption 0% Temperature Cool (9) Movement Treading (560) Ox5 Location -10/Subcaves Parts ------- > --- POWER (1) -------- (None) > --- PROPULSION (2) --- Light Treads Light Treads > --- UTILITY (2) ------ Humpback > --- WEAPON (2) ------- Assault Rifle Makeshift Sword > --- INVENTORY (35) --- Improved Ion Engine Disposable Heat Sink High-capacity Storage Unit Structural Scanner Subdweller Optics Subdweller Laser Particle Cannon Particle Cannon Grenade Launcher SUBCON Basin (Full) Peak State ------------ > --- POWER ------------ (None) > --- PROPULSION ------- Light Treads Light Treads > --- UTILITY ---------- Humpback > --- WEAPON ----------- Assault Rifle Makeshift Sword > --- INVENTORY -------- Improved Ion Engine Disposable Heat Sink High-capacity Storage Unit Structural Scanner Subdweller Optics Subdweller Laser Particle Cannon Particle Cannon Grenade Launcher SUBCON Basin [Rating: 28] Favorites ----------- Power Improved Ion Engine Engine Improved Ion Engine Propulsion Light Treads Treads Light Treads Wheel Wheel Utility High-capacity Storage Unit Device Structural Scanner Storage High-capacity Storage Unit Weapon Assault Rifle Energy Gun Medium Laser Energy Cannon Particle Cannon Ballistic Gun Assault Rifle Launcher Grenade Launcher Special Weapon Mining Laser Slashing Weapon Makeshift Sword Build | -11 -10 -10 ------- Run | Yrd Mat Sub Slots Evolved . | . . . Power . | . . . Propulsion . | . . . Utility . | . . . Weapon . | . . . Parts Attached 26 | 8 10 8 Power 2 | 1 1 . Engine 2 | 1 1 . Core . | . . . Reactor . | . . . Propulsion 3 | 2 . 1 Treads 2 | 1 . 1 Leg . | . . . Wheel 1 | 1 . . Hover . | . . . Flight . | . . . Utility 7 | 2 2 3 Device 3 | 1 . 2 Storage 4 | 1 2 1 Processor . | . . . Hackware . | . . . Protection . | . . . Artifact . | . . . Weapon 14 | 3 7 4 Energy Gun 3 | 3 . . Energy Cannon 2 | . 2 . Ballistic Gun 5 | . 2 3 Ballistic Cannon . | . . . Launcher 1 | . 1 . Special Weapon 2 | . 2 . Impact Weapon . | . . . Slashing Weapon 1 | . . 1 Piercing Weapon . | . . . Special Melee Weapon . | . . . Unidentified Prototypes . | . . . Parts Lost 3 | . 1 2 Power 1 | . . 1 Propulsion 1 | . . 1 Utility 1 | . 1 . Weapon . | . . . Highest Loss Streak 2 | . 1 2 To Critical Strikes . | . . . Average Slot Usage (%) 89 | . 90 87 Engine 10 | . 14 8 Treads 17 | . 14 19 Wheel 10 | . 14 8 Device 7 | . 5 8 Storage 14 | . 14 14 Energy Gun 5 | . 12 . Energy Cannon 8 | . 2 13 Ballistic Gun 12 | . 9 14 Special Weapon 1 | . 3 . Peak Build Rating 28 | 7 11 28 Average Rating 16 | 5 7 23 On Entrance 6 | . 7 11 Naked Turns . | . . . Heaviest Build 206 | 12 67 206 Greatest Support 40 | 10 10 40 Greatest Overweight (x) 6 | 1 6 5 Average Overweight (x) 3 | . 3 4 Largest Inventory Capacity 35 | 8 20 35 Average Capacity 22 | 7 17 26 Most Carried 24 | 6 15 24 Average Carried 15 | 3 9 19 Final Capacity 35 | 8 20 35 Final Carried 24 | 6 15 24 Class Distribution -------------------- 76% | Mutant 23% | Hauler-Mutant Dominant Class ---------------- Mutant | -10/Materials Mutant | -10/Subcaves Resources | -11 -10 -10 ----------- Run | Yrd Mat Sub Matter Collected 540 | 280 153 107 Remotely . | . . . Salvage Created 525 | 173 232 120 Parts 44 | 15 24 5 Haulers Intercepted . | . . . Recyclers Shooed . | . . . Parts Field Recycled . | . . . Retrieved Matter . | . . . Parts Self-Destructed . | . . . Prevented . | . . . Kills | -11 -10 -10 ------- Run | Yrd Mat Sub Combat Hostiles Destroyed 15 | . 12 3 Melee 1 | . . 1 Guns 6 | . 6 . Cannons 5 | . 3 2 AOE 3 | . 3 . Classes Destroyed 7 | 2 4 1 Worker 1 | . 1 . Tunneler 6 | 5 1 . Recycler 1 | 1 . . Watcher 1 | . 1 . Swarmer 9 | . 9 . Grunt 3 | . 3 . Subdweller 3 | . . 3 Best Kill Streak 6 | 6 4 2 Combat Bots Only 4 | . 4 2 Max Kills in Single Turn 2 | 1 2 1 Gunslinging . | . . . Exploded 2 | . 2 . Melee 1 | . . 1 Uniques/NPCs Destroyed . | . . . Combat | -11 -10 -10 -------- Run | Yrd Mat Sub Hostile Shots Fired 72 | . 38 34 Missed 9 | . 7 2 Damage Taken 1000 | . 271 729 Core 256 | . 70 186 Absorbed by Shields . | . . . Core Remaining (%) 100 | 100 . . Volleys Fired 83 | 9 49 25 Largest 2 | 2 2 2 Hottest 100 | 90 100 88 Shots Fired 117 | 18 63 36 Gun 53 | 18 24 11 Cannon 32 | . 7 25 Launcher 2 | . 2 . Special 30 | . 30 . Kinetic 25 | . 14 11 Thermal 90 | 18 47 25 Explosive 2 | . 2 . Electromagnetic . | . . . Robot Hit Streak 14 | 9 5 14 Robot Miss Streak 2 | 2 2 . Penetration Max . | . . . Secondary Targets . | . . . Shots Hit Robots 51 | 14 16 21 Core Hits 27 | 7 15 5 Critical Kills . | . . . Critical Parts Destroyed . | . . . Critical Strikes 2 | 2 . . Burn 2 | 2 . . Melee Attacks 9 | . . 9 Impact . | . . . Slashing 9 | . . 9 Piercing . | . . . Sneak Attacks . | . . . Combat Hostiles . | . . . Follow-up Attacks . | . . . Damage Inflicted 1140 | 165 478 497 Guns 404 | 165 153 86 Cannons 270 | . 103 167 Explosions 222 | . 222 . Melee 244 | . . 244 Ramming . | . . . Kinetic 164 | . 78 86 Thermal 510 | 165 178 167 Explosive 222 | . 222 . Electromagnetic . | . . . Impact . | . . . Slashing 244 | . . 244 Piercing . | . . . Highest Corruption . | . . . Average Corruption . | . . . Corruption Purged . | . . . Corruption Blocked . | . . . Overload Shots . | . . . Overflow Damage 29 | . 29 . Projectiles . | . . . Explosions 29 | . 29 . Melee . | . . . Knockbacks . | . . . Impact . | . . . Kinetic . | . . . Secondary . | . . . Self-Inflicted Damage . | . . . Shots . | . . . Rammed . | . . . Targets Rammed . | . . . Kicked . | . . . Crushed . | . . . Highest Temperature 254 | 210 159 254 Average Temperature 56 | 91 47 130 Received Heat Transfer 485 | . 30 455 Siege Activations . | . . . Robots Corrupted . | . . . Combat Hostiles . | . . . Parts Fried . | . . . Impact Corruptions . | . . . Robots Melted . | . . . Combat Hostiles . | . . . Parts Melted 7 | 4 . 3 Heat Transferred 1285 | 582 407 296 Parts Sabotaged . | . . . Parts Stolen . | . . . Parts Stripped . | . . . Power Chain Reactions . | . . . Alert | -11 -10 -10 ------- Run | Yrd Mat Sub Peak Influence 335 | 30 335 . Initial 19 | . 19 . Average 100 | 11 108 . Maximum Alert Level 1 | . 1 . Low Security (%) 92 | 100 91 . Level 1 7 | . 8 . Level 2 . | . . . Level 3 . | . . . Level 4 . | . . . Level 5 . | . . . High Security . | . . . Max Security . | . . . Squads Dispatched 1 | . 1 . Investigation 1 | . 1 . Extermination . | . . . Reinforcement . | . . . Assault . | . . . Garrison . | . . . Intercept . | . . . Searches Triggered . | . . . Construction Impeded . | . . . Haulers Reinforced . | . . . Active Scanning Responses . | . . . Cargo Convoy Interrupts . | . . . Stealth | -11 -10 -10 --------- Run | Yrd Mat Sub Distress Signals 1 | . 1 . Communications Jammed . | . . . Distress Signals . | . . . Times Spotted 23 | . 19 4 Peak Tracking Total 4 | . 4 2 Tactical Retreats 1 | . 1 . Traps | -11 -10 -10 ------- Run | Yrd Mat Sub Traps Triggered 1 | . 1 . Indirectly . | . . . Trap Hack Attempts . | . . . Triggered . | . . . Disarmed . | . . . Reprogrammed . | . . . Reused . | . . . Traps Extracted . | . . . Installed . | . . . Triggered . | . . . Machines | -11 -10 -10 ---------- Run | Yrd Mat Sub Machines Disabled 2 | . 2 . Max in Single Turn 2 | . 2 . Machines Repaired . | . . . Machines Dismantled . | . . . Machines Sabotaged . | . . . Overloaded Fab Kills . | . . . Hacking | -11 -10 -10 --------- Run | Yrd Mat Sub Machines Accessed 3 | . 1 2 Terminals 1 | . 1 . Fabricators . | . . . Repair Stations . | . . . Recycling Units . | . . . Scanalyzers . | . . . Garrison Access . | . . . Total Hacks 5 | . 2 3 Successful 3 | . . 3 Failed 2 | . 2 . Catastrophic . | . . . Database Lockouts . | . . . Manual 2 | . 2 . Terminals 2 | . 2 . Fabricators . | . . . Repair Stations . | . . . Recycling Units . | . . . Scanalyzers . | . . . Garrison Access . | . . . Terminal Hacks 3 | . . 3 Record 1 | . . 1 Open Door 1 | . . 1 Release Object 1 | . . 1 Fabricator Hacks . | . . . Repair Station Hacks . | . . . Recycling Unit Hacks . | . . . Scanalyzer . | . . . Garrison Access Hacks . | . . . Unauthorized Hacks . | . . . Terminals . | . . . Fabricators . | . . . Repair Stations . | . . . Recycling Units . | . . . Scanalyzers . | . . . Garrison Access . | . . . Data Cores Recovered . | . . . Used . | . . . Hacking Detections 1 | . 1 . Full Trace Events . | . . . Feedback Events . | . . . Feedback Blocked . | . . . Robot Schematics Acquired . | . . . Robots Built . | . . . Authchips . | . . . Time . | . . . Total Robot Build Rating . | . . . Part Schematics Acquired . | . . . Parts Built . | . . . Authchips . | . . . Time . | . . . Total Part Build Rating . | . . . Parts Repaired . | . . . Time . | . . . Parts Recycled . | . . . Recycled Matter . | . . . Retrieved Matter . | . . . Retrieved Components . | . . . Parts Scanalyzed . | . . . Part Schematics Acquired . | . . . Parts Damaged . | . . . Bothacking | -11 -10 -10 ------------ Run | Yrd Mat Sub Used RIF Installer . | . . . Robots Hacked . | . . . Non-combat . | . . . Combat . | . . . Robot Hacks Applied . | . . . Relay Couplers Released . | . . . Fabnet Peak Effective % . | . . . Robots Rewired . | . . . Allies Hacked . | . . . Hacks Repelled . | . . . Allies | -11 -10 -10 -------- Run | Yrd Mat Sub Total Allies . | . . . Largest Group . | . . . Highest-Rated Group . | . . . Highest-Rated Ally . | . . . Total Orders . | . . . Ally Attacks . | . . . Total Damage . | . . . Kills . | . . . Allies Corrupted . | . . . Allies Melted . | . . . Intel | -11 -10 -10 ------- Run | Yrd Mat Sub Robot Analysis Total . | . . . Derelict Logs Recovered . | . . . Drone Launches . | . . . Drone Recoveries . | . . . Exploration | -11 -10 -10 ------------- Run | Yrd Mat Sub Turns Passed 2576 | 91 1019 1466 Spaces Moved 1312 | 52 636 624 Core 1 | 1 . . Treads 99 | . . 99 Legs . | . . . Wheels 1212 | 51 636 525 Hover . | . . . Flight . | . . . Fastest Speed 50 | 50 95 155 Average Speed 169 | 89 127 218 Slowest Speed 560 | 95 170 560 Overloaded Moves . | . . . Propulsion Burnouts . | . . . Robots Hopped . | . . . Cave-ins Triggered . | . . . Exploration Rate (%) 44 | 3 99 31 Regions Visited 2 Branch Regions 1 Pre-discovered Areas 1 | . . 1 Known Exits Taken . | . . . Unknown Exits Taken 2 | 1 1 . Scrap Searched 1 | . . 1 Spaces Dug 20 | . 20 . Terrain Destroyed 32 | . 32 . Melee . | . . . Projectile 21 | . 21 . AOE 11 | . 11 . Terrain Rammed . | . . . Walls Destroyed . | . . . Machines Disabled . | . . . Actions | -11 -10 -10 --------- Run | Yrd Mat Sub Total 1482 | 74 719 689 Wait 7 | . 5 2 Move 1310 | 51 635 624 Hop . | . . . Pick Up 25 | 6 11 8 Fast Attach 10 | 7 2 1 Attach 2 | . . 2 Detach 3 | . 2 1 Swap 14 | 1 8 5 Drop 19 | . 7 12 Fire 83 | 9 49 25 Melee 9 | . . 9 Ram . | . . . Kick . | . . . Crush . | . . . Escape Stasis . | . . . Rewire . | . . . Trap . | . . . Miscellaneous . | . . . Route ------- -11/Scrapyard -10/Materials (discovered 6 exits: [*Mat x3] / [*Min x2] / *Sub) -10/Subcaves History --------- Turn | Location | Event 33 | -11/Scrapyard | Discovered new exit (range 15) 92 | -11/Scrapyard | Entered Materials 152 | -10/Materials | Discovered new exit (range 10) 302 | -10/Materials | Build established: Mutant 316 | -10/Materials | Discovered new exit (range 5) 471 | -10/Materials | Discovered new exit (range 16) 791 | -10/Materials | Discovered new exit (range 7) 1019 | -10/Materials | Discovered new exit (range 12) 1091 | -10/Materials | Discovered new exit (range 4) 1111 | -10/Materials | Entered Subcaves 1277 | -10/Subcaves | Learned location of Zion (-7) 1277 | -10/Subcaves | Met a Zionite searching for "candidates" 1413 | -10/Subcaves | Found SUBCON Basin 1523 | -10/Subcaves | A swath of the cavern ceiling suddenly collapsed 1915 | -10/Subcaves | Shifting Twisted Machinery released Mak. Sword 1970 | -10/Subcaves | Core integrity fell below 50% 2286 | -10/Subcaves | Build established: Hauler-Mutant 2544 | -10/Subcaves | Disturbed a concealed Subdweller 2551 | -10/Subcaves | Disturbed a concealed Subdweller 2563 | -10/Subcaves | Core integrity fell below 20% 2577 | -10/Subcaves | Destroyed by 1G-4KX(R) with Subdweller Beam Cannon Last Messages --------------- 01989_ Acquired Hcp. Storage Unit. 01995_ Acquired SUBCON Basin. 02007_ Acquired Sub. Optics. 02020_ Subatomizers dissect the Assault Rifle. 02025_ Acquired Sub. Laser. 02032_ Subatomizers dissect the Assault Rifle. 02032_ Acquired Disposable Heat Sink. 02055_ Acquired Assault Rifle. 02075_ Dropped Assault Rifle. 02083_ Subatomizers dissect the Assault Rifle, destroying it. 02145_ Acquired Mak. Sword. 02413_ Acquired 23 matter. 02544_ 1G-4KX(R) angrily emerges from the Twisted Machinery. 02545_ Critical hit (Meltdown: +290). 02551_ YK-OFP(R) angrily emerges from the Twisted Machinery. 02567_ YK-OFP(R) affixes Scrap Shield Fragment to Scrap Shield. 02568_ YK-OFP(R) destroyed. 02571_ Subatomizers dissect the Sub. Optics. 02574_ Acquired 10 matter. 02574_ 1G-4KX(R) affixes Scrap Shield Fragment to Scrap Shield. Map ----- +----------------------------------------------------+ | #### #######???????????????##############???###### | | " ######??????????????#### ###### ##???## ## | | """ ###????????######## ### ####### | | """" ## ###???############ ### ######## | | """ # ## ##?######### ## ## ### # # | | "" ##" ######## ## | | " ##"# ##### ## ## | | # #####""## #### ## # # ## ## ## | | [#####"### ####### # ## ############## | | #%#### " ### ####### ## ## ######### ### | | ###### ## ##### ### ###??#??# #? | | #### # ###???### ## | | ?## ## ###????# # | | ?##### # ## ##??### # | | ?############### ## ## ##??# | | ????############ ###### ##??## | | ?????????????### ####### ####### | | ???????????##### ##### ### ### # | | ???????????#### #### | | ???????????## ###?# | | ???????????#### ###### # | | ???????????#### ###### ######## | | ?????????????## ### #### ##?#??## | | ?????????????## ##"<## #??#### | | ?????????????### !#<$<$# ##??#??## | | ?????????????### !@&$$$<# ##??????#### | | ?????????????## ## ##<$<# #########?##### | | ?????????????### ### R ##"## #########?###### | | ?????????????####### ### ### ########## | | ??????????????#### ## ###### # | | ??????????????### ##### | | ?????????????### ##### | | ?????????????## ##?### | | ?????????????## ##?###### | | ?????????????### ??##### ## | | ?????????????###### ####### & ## | | ??????????????##### #### % ## | | ?????????????????## ###""""" % | | ?????????????????### ### """"" ### ## | | ?????????????????### ### #####""""" #### #### | | ?????????????????## ###########""" #### #### | | ?????????????????### ??#########""" ### ##?? | | ?????????????????## ???###### ##" ### ###?? | | ???????????????????? ??"?## " ### "#######?? | | ?????????????????????? #### "" ##########??? | | ?????????????????????? #""" " "" # #?????? | | ??????????????????????? """"" " " #?????? | | ???????????????????????? """"" """" #"## ###????? | | ????????????????????????#"##" """""###### "##????? | | ?????????????????????????###" "##""###### ###????? | +----------------------------------------------------+ Best States ------------- Heat Dissipation 25 Energy Generation 12 Energy Capacity 265 Matter Stores 300 Matter Capacity 300 Sight Range 16 Terrain Scan Range 16 Terrain Scan Density 10 Evasion (%) 44 Recoil Reduction 2 Item Schematics ----------------- None Robot Schematics ------------------ None Fabricated ------------ Nothing Alien Tech Used ----------------- None Achievements -------------- None Challenges ------------ None Game ------ Seed SpacefoldHellfireMeganuke Manual? 0 Play Time 00:18:59 Cumulative 82.5 hours Start 2024.10.15 @ 12:49:27 End 2024.10.15 @ 13:06:12 Sessions 1 Manual Loads 0 Difficulty Rogue Special Mode None Game No. 135 Rogue 107 Adventurer 28 Explorer 0 Win Type - Total 0 Types 0/0/0/0/0/0/0/0/0 Lore% 27 Gallery% 30 Achievement% 32 Wizard Run 0 Options --------- Layout 0 ASCII 0 Keyboard 1 Movement Numpad Keybinds 0 Fullscreen 2 Font 36/Smallcaps Map View 76x50 Zoom Use 0% Tactical HUD 1 Map Filters NONE Filters NONE Steam 1 RUN: da47a48f-5b3f-42c7-a644-db28fc1c2689